bitfinex-derivatives/quotes_ETHF0:USTF0_20241105
["timestamp","ask_amount","ask_price","bid_price","bid_amount"]
[1730824696456,3.8193,2462.0,2461.0,3.2078]
[1730824696662,0.40628,2461.8,2461.5,3.2078]
[1730824696862,0.40629,2461.7,2461.3,0.40634]
[1730824697157,0.40627,2461.8,2461.3,0.40633]
[1730824697352,3.8193,2462.0,2461.2,3.2078]
[1730824697353,7.7219309,2462.0,2461.2,3.2078]
[1730824697555,3.2078,2461.7,2460.9,0.4064]
[1730824697765,0.40635,2461.3,2460.9,0.4064]
[1730824697962,3.2078,2461.7,2460.6,1.2763]
[1730824697963,3.2078,2461.4,2460.6,2.0556]
[1730824698259,40.8,2461.2,2460.6,0.5676]
[1730824698466,40.8,2461.2,2460.7,0.40644]
[1730824698651,3.2078,2461.0,2460.2,1.03821224]
[1730824698965,7.5168909,2460.7,2460.2,1.03821224]
[1730824699362,0.40651,2460.3,2460.2,1.03821224]
[1730824699766,4.47131,2460.3,2460.2,1.03821224]
[1730824699970,4.0648,2460.3,2460.2,1.03821224]
[1730824700264,40.8,2460.3,2460.2,1.03821224]
[1730824700669,40.8,2460.3,2460.2,4.65254224]
[1730824700866,3.2078,2460.8,2460.2,7.2726]
[1730824701070,3.9026309,2460.7,2459.9,0.6244]
[1730824701466,40.8,2460.6,2459.9,0.6244]
[1730824701766,40.8,2460.6,2460.1,3.2078]
[1730824701962,40.8,2460.6,2460.2,0.40652]
[1730824702171,40.8,2460.6,2460.3,0.40651]
[1730824702569,40.8,2460.6,2460.4,0.40648]
[1730824702865,3.61419,2461.1,2460.5,0.40648]
[1730824703071,0.4064,2461.0,2460.4,3.2078]
[1730824703268,40.8,2460.9,2460.4,3.61429]
[1730824703573,0.40644,2460.8,2460.2,0.40651]
[1730824703965,41.20643,2460.9,2460.1,3.2078]
[1730824704164,40.8,2460.9,2460.5,0.40647]
[1730824704364,40.8,2460.9,2460.4,3.2078]
[1730824704563,40.8,2460.9,2460.6,0.40646]
[1730824704762,40.8,2460.9,2460.5,0.40647]
[1730824704975,0.40644,2460.8,2460.4,3.2078]
[1730824705361,0.40643,2460.8,2460.4,3.2078]
[1730824705561,40.8,2460.9,2460.4,3.2078]
[1730824705967,41.20641,2460.9,2460.4,3.61428]
[1730824706270,0.40643,2460.8,2460.4,3.2078]
[1730824706475,41.20642,2460.9,2460.4,3.61429]
[1730824706769,41.20642,2460.9,2460.5,0.40648]
[1730824706967,40.8,2460.9,2460.6,0.40645]
[1730824707177,41.20641,2460.9,2460.5,0.40647]
[1730824707875,40.8,2460.9,2460.4,3.2078]
[1730824708471,40.8,2460.9,2460.6,0.40645]
[1730824708978,40.8,2460.9,2460.7,0.40643]
[1730824709173,40.8,2460.9,2460.8,0.40643]
[1730824709474,40.8,2460.9,2460.4,3.2078]
[1730824709671,0.40646,2460.6,2460.4,3.2078]
[1730824710067,40.8,2460.9,2460.4,3.2078]
[1730824710264,7.1104309,2460.6,2459.6,3.2078]
[1730824710466,3.2078,2460.6,2459.6,3.2078]
[1730824710664,3.2078,2460.6,2460.2,0.40652]
[1730824710665,3.61427,2460.6,2460.2,0.40652]
[1730824710868,3.61427,2460.6,2460.2,0.40653]
[1730824711076,3.61427,2460.6,2460.1,0.40653]
[1730824711077,0.40648,2460.5,2460.1,0.40653]
[1730824711778,3.2078,2460.6,2459.9,3.2078]
[1730824711973,44.7026309,2460.9,2459.9,3.2078]
[1730824711974,44.0078,2460.9,2460.2,3.2078]
[1730824712170,44.0078,2460.9,2460.7,0.40644]
[1730824712776,44.0078,2460.9,2460.6,0.40646]
[1730824713174,44.0078,2460.9,2460.3,0.6961]
[1730824713472,44.0078,2460.9,2460.6,0.40646]
[1730824713473,44.41422,2460.9,2460.6,0.40646]
[1730824713975,0.40643,2460.8,2460.5,0.40647]
[1730824714374,44.0078,2460.9,2460.2,3.2078]
[1730824714582,3.9026309,2460.8,2460.2,0.40651]
[1730824714876,3.9026309,2460.8,2459.6,1.05261]
[1730824714877,0.40657,2460.0,2459.6,1.05261]
[1730824715079,7.1104309,2460.3,2459.6,1.05261]
[1730824715080,7.1104309,2460.3,2459.6,0.646]
[1730824715380,0.40654,2460.1,2459.6,0.646]
[1730824715578,0.7059,2460.2,2459.6,0.646]
[1730824715770,0.7059,2460.2,2459.5,3.2078]
[1730824715771,0.4066,2459.8,2459.5,3.61444]
[1730824715970,0.4066,2459.8,2459.5,3.2078]
[1730824716170,40.8,2459.7,2459.5,3.2078]
[1730824716369,40.8,2459.7,2459.3,0.40666]
[1730824716574,40.8,2459.7,2458.9,2.135]
[1730824716775,40.8,2459.7,2459.6,0.40663]
[1730824716971,40.8,2459.7,2458.9,6.0376309]
[1730824716972,40.8,2459.7,2459.5,0.40663]
[1730824717571,40.8,2459.7,2459.4,0.40666]
[1730824717778,41.20661,2459.7,2459.3,0.40667]
[1730824718071,40.8,2459.7,2459.3,0.40666]
[1730824718380,3.2078,2459.6,2458.9,1.05273]
[1730824718574,3.2078,2459.6,2459.0,0.40672]
[1730824718575,1.10076,2459.5,2459.0,0.40672]
[1730824718881,0.7038,2459.6,2458.9,0.646]
[1730824719276,0.7038,2459.6,2459.1,3.2078]
[1730824719481,0.7038,2459.6,2459.3,0.40667]
[1730824719780,40.8,2459.7,2459.4,0.40665]
[1730824720081,40.8,2459.7,2459.1,3.2078]
[1730824720284,44.7026309,2459.7,2458.7,1.489]
[1730824720481,3.2078,2459.5,2458.8,3.2078]
[1730824720786,3.2078,2459.5,2459.1,0.4067]
[1730824721178,3.2078,2459.5,2459.2,0.40668]
[1730824721374,3.2078,2459.5,2458.9,0.40674]
[1730824721681,3.2078,2459.5,2458.8,3.2078]
[1730824722076,0.4067,2459.2,2458.8,3.61455]
[1730824722285,3.2078,2459.5,2458.9,0.40673]
[1730824722286,1.3435,2459.4,2458.9,0.40673]
[1730824722485,1.3435,2459.4,2458.8,3.61455]
[1730824722677,0.40669,2459.3,2458.9,0.40673]
[1730824722879,1.75017,2459.4,2458.8,3.2078]
[1730824723388,1.75017,2459.4,2459.0,0.40671]
[1730824723690,1.75016,2459.4,2459.0,0.40672]
[1730824724088,1.3435,2459.4,2458.8,3.2078]
[1730824724290,3.2078,2459.5,2459.4,0.40666]
[1730824724584,3.2078,2459.5,2459.1,3.2078]
[1730824724776,3.2078,2459.5,2459.4,0.40666]
[1730824724976,3.2078,2459.7,2459.5,0.40663]
[1730824725184,3.2078,2459.7,2459.2,0.6639]
[1730824725484,3.2078,2459.7,2459.6,0.40663]
[1730824725684,40.8,2459.8,2459.6,0.40663]
[1730824725981,40.8,2459.8,2459.7,0.40661]
[1730824726182,3.2078,2460.7,2460.3,0.40651]
[1730824726481,3.2078,2460.7,2459.6,3.9026309]
[1730824726482,3.2078,2460.7,2460.1,3.2078]
[1730824726689,41.5077,2460.6,2460.2,0.40653]
[1730824726885,41.5077,2460.6,2460.1,3.2078]
[1730824727089,0.40649,2460.5,2460.1,3.61433]
[1730824727393,0.4065,2460.4,2460.1,3.2078]
[1730824727593,0.40649,2460.5,2459.9,1.471]
[1730824727799,0.40651,2460.4,2460.0,0.40656]
[1730824727989,41.5077,2460.6,2459.9,1.471]
[1730824728188,41.91417,2460.6,2460.2,0.40651]
[1730824728484,41.91416,2460.6,2460.2,0.40651]
[1730824728681,41.5077,2460.6,2459.9,1.471]
[1730824728892,41.5077,2460.6,2460.2,0.40653]
[1730824729093,41.91417,2460.6,2460.2,0.40653]
[1730824729897,41.5077,2460.6,2459.9,1.471]
[1730824730194,41.5077,2460.6,2460.4,0.40649]
[1730824730684,45.5717,2460.6,2460.4,0.40649]
[1730824730880,45.5717,2460.6,2460.1,3.2078]
[1730824730881,41.5077,2460.6,2460.1,3.2078]
[1730824731396,40.8,2460.6,2460.5,0.40648]
[1730824731689,3.8719,2461.0,2460.5,4.064]
[1730824731690,0.6641,2461.0,2460.5,4.064]
[1730824731898,0.6641,2461.0,2460.4,3.2078]
[1730824732099,40.8,2460.9,2460.4,3.2078]
[1730824732299,40.8,2460.9,2460.7,0.40643]
[1730824732694,40.8,2460.9,2460.4,3.2078]
[1730824732998,40.8,2460.9,2460.7,0.40643]
[1730824733492,40.8,2460.9,2460.8,0.40643]
[1730824736197,40.8,2460.9,2460.7,3.2078]
[1730824736198,51.9744309,2460.9,2460.3,3.2078]
[1730824736399,0.40647,2460.6,2460.3,3.2078]
[1730824736597,0.40648,2460.5,2460.3,3.2078]
[1730824737101,0.40647,2460.6,2460.3,3.2078]
[1730824737398,0.40647,2460.6,2460.3,3.6143]
[1730824737598,40.8,2460.4,2460.3,3.6143]
[1730824738395,40.8,2460.4,2460.3,0.4065]
[1730824739199,40.8,2460.4,2460.1,3.2078]
[1730824739506,40.8,2460.4,2460.1,3.61433]
[1730824739507,41.20649,2460.4,2460.1,3.61433]
[1730824739691,44.0078,2460.4,2460.0,0.40655]
[1730824739998,44.0078,2460.4,2459.5,3.2078]
[1730824740201,44.0078,2460.4,2459.9,0.40657]
[1730824740202,1.80382,2460.3,2459.9,0.40657]
[1730824740392,1.80382,2460.3,2459.8,3.2078]
[1730824740393,1.3973,2460.3,2459.8,3.2078]
[1730824740598,1.3973,2460.3,2460.2,0.40653]
[1730824741098,5.4621,2460.3,2460.2,0.40653]
[1730824741302,1.3973,2460.3,2460.1,0.40654]
[1730824741493,1.3973,2460.3,2459.8,3.2078]
[1730824741695,1.3973,2460.3,2458.9,1.24221224]
[1730824741696,3.2078,2459.9,2458.9,1.24221224]
[1730824741892,3.2078,2459.9,2459.5,0.40664]
[1730824742098,3.913,2460.3,2459.7,3.2078]
[1730824742293,40.8,2460.2,2460.1,0.40654]
[1730824742699,3.2078,2460.3,2460.2,0.40653]
[1730824743002,3.2078,2460.3,2460.2,4.0648]
[1730824743207,3.2078,2460.8,2460.2,4.0648]
[1730824743501,3.2078,2460.8,2460.3,0.6931]
[1730824743703,3.2078,2460.8,2460.7,0.40644]
[1730824744009,40.8,2461.0,2460.7,0.40644]
[1730824744204,40.8,2461.0,2460.6,0.40646]
[1730824744501,1.66429554,2461.8,2460.9,0.40641]
[1730824744502,4.3089109,2461.7,2460.9,0.40641]
[1730824744702,0.6695,2461.7,2461.0,3.2078]
[1730824744900,1.07579,2461.7,2461.1,0.40637]
[1730824745109,40.8,2461.6,2461.1,0.40638]
[1730824745298,40.8,2461.6,2461.2,0.40635]
[1730824745498,40.8,2461.6,2461.0,3.2078]
[1730824745800,40.8,2461.6,2461.2,0.40636]
[1730824746304,40.8,2461.6,2461.0,3.2078]
[1730824746305,40.8,2461.6,2461.3,0.40633]
[1730824746501,40.8,2461.6,2461.5,0.40631]
[1730824747000,0.6725,2462.4,2461.5,7.9650309]
[1730824747206,0.6725,2462.4,2462.0,0.40622]
[1730824747408,40.8,2462.3,2461.7,3.2078]
[1730824748205,40.8,2462.3,2461.6,1.47]
[1730824748400,0.4062,2462.2,2461.5,1.87631]
[1730824748898,0.6714,2462.1,2461.6,0.40629]
[1730824749102,3.8792,2462.1,2461.5,1.47]
[1730824749405,3.8792,2462.1,2461.6,0.40629]
[1730824749602,3.8792,2462.1,2461.4,3.9252]
[1730824749806,0.40623,2462.0,2461.4,3.61412]
[1730824749998,3.8792,2462.1,2461.6,0.40629]
[1730824750197,3.8792,2462.1,2461.8,0.40625]
[1730824750596,3.8792,2462.1,2461.9,0.40625]
[1730824751211,3.8792,2462.1,2461.4,3.2078]
[1730824751408,3.8792,2462.1,2461.8,0.40625]
[1730824752003,3.8792,2462.1,2461.7,0.40627]
[1730824752511,3.8792,2462.1,2461.4,3.2078]
[1730824752714,4.28542,2462.1,2461.6,0.40629]
[1730824753314,0.40623,2462.0,2461.6,0.40629]
[1730824753705,0.40624,2462.0,2461.6,0.40629]
[1730824753900,3.8792,2462.1,2461.8,0.40625]
[1730824754106,3.8792,2462.1,2461.5,3.9026309]
[1730824754307,3.2078,2462.1,2462.0,0.40623]
[1730824754614,40.8,2462.3,2462.0,0.40623]
[1730824755021,41.20619,2462.3,2461.9,0.40624]
[1730824755314,40.8,2462.3,2462.0,0.40622]
[1730824756216,41.20618,2462.3,2462.0,0.40622]
[1730824756718,41.20618,2462.3,2461.9,0.40623]
[1730824757421,41.20618,2462.3,2462.0,0.40623]
[1730824757607,41.20618,2462.3,2461.7,1.469]
[1730824757911,40.8,2462.3,2461.5,7.1104309]
[1730824758106,3.2078,2462.1,2461.2,3.2078]
[1730824758414,0.40623,2462.0,2461.4,0.40632]
[1730824758612,3.2078,2461.7,2461.2,3.2078]
[1730824758812,3.2078,2461.7,2461.1,1.10077]
[1730824759010,3.2078,2461.4,2461.0,1.469]
[1730824759212,3.61414,2461.4,2461.1,0.40637]
[1730824759510,0.6655,2461.3,2461.0,1.469]
[1730824759718,0.6655,2461.3,2461.2,0.40636]
[1730824760108,41.4677,2461.6,2461.0,1.469]
[1730824760319,41.4677,2461.6,2460.7,4.6414]
[1730824760320,45.3703309,2461.6,2460.7,4.6414]
[1730824760509,3.2078,2461.1,2460.7,0.7179]
[1730824760705,3.2078,2461.1,2460.5,10.865]
[1730824760706,3.2078,2461.1,2460.4,1.469]
[1730824760912,0.40643,2460.8,2460.3,3.6143]
[1730824761106,3.2078,2460.8,2460.3,3.2078]
[1730824761509,3.2078,2460.8,2460.5,0.40648]
[1730824761718,3.2078,2460.8,2460.1,1.469]
[1730824761919,0.40645,2460.7,2460.2,0.40653]
[1730824762111,3.2078,2460.8,2460.3,0.4065]
[1730824762915,3.2078,2460.8,2460.6,0.40645]
[1730824763110,3.2078,2460.8,2460.2,7.1104309]
[1730824763315,0.7222,2460.9,2460.2,11.1744309]
[1730824763506,0.6992,2461.3,2460.2,11.1744309]
[1730824763507,0.6992,2461.3,2460.9,0.4064]
[1730824763712,3.2078,2461.4,2460.3,4.064]
[1730824763713,3.2078,2461.4,2460.7,3.9026309]
[1730824763912,3.2078,2461.4,2461.2,0.40635]
[1730824764311,3.2078,2461.4,2461.3,0.40635]
[1730824764517,3.2078,2461.4,2461.2,0.40636]
[1730824764818,3.2078,2461.4,2460.8,2.8269]
[1730824765115,3.2078,2461.4,2460.8,0.6657]
[1730824765321,3.2078,2461.4,2460.8,2.1347]
[1730824765322,0.40635,2461.3,2460.8,2.1347]
[1730824765515,0.40635,2461.3,2460.9,0.40641]
[1730824765822,0.40635,2461.3,2460.8,2.1347]
[1730824766307,3.2078,2461.1,2460.5,3.2078]
[1730824766512,3.2078,2461.1,2460.5,3.61426]
[1730824766513,3.61419,2461.1,2460.5,3.61426]
[1730824766715,0.40641,2461.0,2460.5,3.2078]
[1730824767314,3.2078,2461.1,2460.5,3.61427]
[1730824767515,3.61419,2461.1,2460.6,0.40645]
[1730824768017,3.2078,2461.1,2460.7,0.40644]
[1730824768222,3.2078,2461.3,2460.8,4.0632]
[1730824768424,3.2078,2461.3,2460.9,0.40641]
[1730824768622,3.61415,2461.3,2460.9,0.40641]
[1730824768827,3.2078,2461.3,2460.9,0.40641]
[1730824769219,3.2078,2461.3,2461.1,0.40637]
[1730824769520,3.2078,2461.3,2461.0,0.40639]
[1730824769723,3.61415,2461.3,2460.9,0.4064]
[1730824769922,3.61415,2461.3,2460.5,3.2078]
[1730824769923,0.40643,2460.8,2460.5,3.2078]
[1730824770118,0.40637,2461.2,2460.7,0.40643]
[1730824770314,0.40639,2461.1,2460.7,0.40643]
[1730824770517,3.2078,2461.0,2459.9,4.6768]
[1730824770717,0.4065,2460.4,2460.0,0.40655]
[1730824770914,3.61429,2460.5,2460.1,0.40654]
[1730824771122,40.8,2460.3,2460.2,0.40653]
[1730824771318,4.5686,2460.9,2459.9,8.5794309]
[1730824771319,0.40643,2460.8,2460.4,0.40648]
[1730824771720,40.8,2460.7,2460.5,0.40648]
[1730824772119,40.8,2460.7,2460.0,1.01641]
[1730824772329,40.8,2460.7,2459.9,8.5794309]
[1730824772520,3.2078,2460.9,2460.8,0.40643]
[1730824772818,3.2078,2460.9,2460.2,7.1104309]
[1730824773025,44.0078,2460.9,2460.3,0.6591]
[1730824773219,40.8,2460.9,2460.8,0.40643]
[1730824773425,3.61415,2461.3,2460.9,0.4064]
[1730824773623,3.2078,2461.3,2460.6,1.469]
[1730824773931,3.2078,2461.3,2461.2,0.40636]
[1730824774729,4.0632,2461.2,2459.9,1.56063153]
[1730824774929,1.314,2461.5,2459.7,0.6917]
[1730824774930,3.2078,2460.2,2459.7,0.6917]
[1730824775225,1.01595,2461.1,2459.7,3.8995]
[1730824775226,3.2078,2460.9,2459.7,3.8995]
[1730824775427,3.9026309,2461.1,2460.2,0.40652]
[1730824775428,3.2078,2460.4,2460.2,0.40652]
[1730824776018,3.2078,2460.7,2459.7,4.91602]
[1730824776225,3.2078,2460.7,2460.0,3.2078]
[1730824776431,3.2078,2460.7,2460.4,0.40649]
[1730824777131,0.40649,2460.5,2460.2,1.469]
[1730824777331,3.2078,2460.7,2460.5,0.40647]
[1730824777527,3.2078,2460.6,2460.4,0.40648]
[1730824777833,3.9026309,2461.4,2460.4,0.6826]
[1730824777834,3.2078,2460.9,2460.4,0.6826]
[1730824778039,3.2078,2461.2,2460.8,0.40642]
[1730824778330,3.61417,2461.2,2460.7,0.40644]
[1730824778537,3.2078,2460.9,2460.7,0.40644]
[1730824779529,3.2078,2460.9,2460.6,1.469]
[1730824779723,3.2078,2460.9,2460.7,0.40644]
[1730824779931,3.2078,2460.9,2460.6,1.469]
[1730824780136,3.2078,2460.9,2460.8,0.40643]
[1730824781334,3.2078,2460.9,2460.8,4.47043]
[1730824781536,3.2078,2461.2,2461.1,0.40638]
[1730824782036,3.2078,2461.2,2461.1,4.46958]
[1730824782533,3.2078,2461.6,2461.5,0.40631]
[1730824782937,3.2078,2461.6,2461.4,1.87432]
[1730824783237,3.2078,2461.6,2461.5,0.40631]
[1730824785330,3.2078,2461.6,2461.2,0.6974]
[1730824785530,3.2078,2461.3,2461.2,1.10376]
[1730824786048,3.2078,2461.3,2461.2,0.6974]
[1730824786537,3.2078,2461.3,2461.2,1.10376]
[1730824787129,3.2078,2461.3,2461.2,5.16696]
[1730824788328,1.56338001,2461.3,2461.2,5.16696]
[1730824788730,3.2078,2461.7,2461.3,0.40635]
[1730824788936,3.2078,2461.7,2461.6,0.4063]
[1730824789439,3.2078,2461.7,2461.6,4.4687]
[1730824790232,3.2078,2461.7,2461.6,0.4063]
[1730824790945,3.2078,2461.7,2461.2,0.6974]
[1730824791144,3.2078,2461.7,2461.6,0.4063]
[1730824791644,3.2078,2461.7,2461.6,4.4687]
[1730824791949,3.2078,2461.7,2461.6,0.4063]
[1730824792740,3.2078,2461.7,2461.6,4.0624]
[1730824792941,3.2078,2461.7,2461.5,0.4063]
[1730824793339,3.2078,2461.7,2461.6,0.4063]
[1730824793552,0.7107,2462.2,2461.6,4.0624]
[1730824793738,0.678,2462.3,2462.1,0.40621]
[1730824793939,48.05989662,2462.6,2462.3,0.40617]
[1730824793940,45.2984709,2462.6,2462.3,0.40617]
[1730824794138,3.2078,2462.4,2462.2,0.4062]
[1730824794339,41.20614,2462.6,2462.3,0.40618]
[1730824794644,41.20614,2462.6,2462.5,0.40615]
[1730824794645,40.8,2462.6,2462.5,0.40615]
[1730824794941,3.2078,2463.0,2462.7,0.4061]
[1730824795141,3.2078,2463.0,2462.5,1.468]
[1730824795142,3.61387,2463.0,2462.6,0.40612]
[1730824795351,40.8,2462.9,2462.6,0.40612]
[1730824795532,40.8,2462.9,2462.5,1.468]
[1730824795733,40.8,2462.9,2462.7,0.40611]
[1730824796644,40.8,2462.9,2462.6,0.40612]
[1730824797342,3.2078,2464.0,2462.8,3.9026309]
[1730824797543,0.40592,2463.9,2462.8,8.1256709]
[1730824797847,41.20594,2463.8,2463.1,3.2078]
[1730824798052,3.2078,2463.7,2463.3,0.40601]
[1730824798252,3.2078,2463.7,2463.2,1.468]
[1730824798253,3.61375,2463.7,2463.2,1.87402]
[1730824798750,3.61375,2463.7,2463.2,1.468]
[1730824799247,3.2078,2463.7,2463.3,0.40601]
[1730824799950,3.2078,2463.7,2463.4,0.40599]
[1730824800154,3.2078,2463.7,2463.3,0.406]
[1730824800643,3.61375,2463.7,2463.3,0.406]
[1730824801546,3.61375,2463.7,2463.2,1.468]
[1730824801547,40.8,2463.8,2463.7,0.40595]
[1730824803650,40.8,2463.8,2463.6,0.40596]
[1730824803848,40.8,2463.8,2463.5,0.6395]
[1730824804152,40.8,2463.8,2463.7,0.40595]
[1730824805647,40.8,2463.8,2463.5,0.6395]
[1730824805851,44.0078,2463.8,2463.1,4.6748]
[1730824806053,44.0078,2463.8,2463.7,0.40595]
[1730824806840,40.8,2463.8,2463.7,0.40595]
[1730824807042,44.0078,2463.8,2463.0,4.6748]
[1730824807252,0.6327,2463.7,2463.6,0.40597]
[1730824807448,0.6327,2463.7,2463.0,8.5774309]
[1730824807449,0.40597,2463.6,2463.3,0.40601]
[1730824807653,0.6327,2463.7,2463.6,0.40597]
[1730824807845,40.8,2463.8,2463.6,3.9026309]
[1730824808047,3.2078,2465.1,2463.7,9.3823]
[1730824808242,0.6532,2465.0,2464.0,7.1104309]
[1730824808449,40.8,2464.9,2464.0,7.1104309]
[1730824808650,3.2078,2464.8,2464.4,0.40582]
[1730824808951,3.2078,2464.8,2464.6,0.4058]
[1730824809155,40.8,2464.9,2464.0,7.1104309]
[1730824809354,3.2078,2464.5,2464.1,0.40587]
[1730824809650,3.61367,2464.2,2463.8,0.40592]
[1730824809854,3.2078,2464.6,2464.0,0.4059]
[1730824810152,3.2078,2464.6,2463.8,7.1104309]
[1730824810355,3.2078,2464.3,2464.0,0.40589]
[1730824810555,3.2078,2464.3,2463.8,8.5774309]
[1730824810556,3.2078,2464.6,2463.8,8.5774309]
[1730824810755,0.40586,2464.3,2463.8,0.40592]
[1730824811057,0.40587,2464.2,2463.8,0.40592]
[1730824811250,0.40591,2464.0,2463.7,1.467]
[1730824811754,3.2078,2464.3,2463.5,3.2078]
[1730824811953,3.2078,2464.0,2463.3,2.53201]
[1730824812152,3.2078,2463.7,2463.4,0.40599]
[1730824812352,3.2078,2463.7,2463.3,2.126]
[1730824812548,3.2078,2463.7,2463.3,1.467]
[1730824812549,0.40597,2463.6,2463.3,1.467]
[1730824812852,3.2078,2463.7,2463.1,3.2078]
[1730824813056,0.40598,2463.6,2463.1,3.2078]
[1730824813352,3.2078,2463.7,2463.1,3.2078]
[1730824813555,3.2078,2463.7,2463.0,1.479]
[1730824813556,3.2078,2463.3,2463.0,1.88506]
[1730824813859,3.2078,2463.3,2462.9,0.6666]
[1730824814058,40.8,2463.2,2462.9,1.07268]
[1730824814443,40.8,2463.2,2462.7,3.8668]
[1730824814444,4.46605,2463.1,2462.7,0.40611]
[1730824814647,4.46605,2463.1,2461.3,11.19442102]
[1730824814648,3.61391,2462.8,2462.3,0.40617]
[1730824814845,3.61391,2462.8,2462.2,0.6182]
[1730824814846,3.2078,2462.8,2462.2,0.6182]
[1730824815051,0.40613,2462.6,2462.2,0.4062]
[1730824815351,0.40616,2462.5,2462.1,1.479]
[1730824815650,3.2078,2462.8,2462.1,1.479]
[1730824815857,3.2078,2462.8,2462.1,5.3816309]
[1730824816052,3.2078,2462.8,2462.4,0.40616]
[1730824816053,3.6139,2462.8,2462.4,0.40616]
[1730824816557,3.2078,2462.5,2462.1,5.7878409]
[1730824816756,3.2078,2462.5,2462.2,0.4062]
[1730824816951,3.2078,2462.5,2462.1,1.479]
[1730824816952,3.61396,2462.5,2462.1,1.479]
[1730824817347,3.2078,2462.5,2462.1,1.479]
[1730824817552,3.2078,2462.5,2461.9,0.40624]
[1730824817754,0.40618,2462.3,2461.8,1.02445]
[1730824817954,1.2977,2462.4,2461.8,1.02445]
[1730824818158,1.2977,2462.4,2461.8,0.6182]
[1730824818651,3.2078,2462.1,2461.7,1.07917]
[1730824818855,3.2078,2462.1,2461.7,0.6729]
[1730824819056,3.2078,2462.1,2461.6,3.2078]
[1730824819263,0.40626,2461.9,2461.5,1.8853]
[1730824819457,0.40627,2461.8,2461.5,1.479]
[1730824819760,40.8,2461.8,2461.5,1.88531]
[1730824820149,40.8,2461.8,2461.2,7.1104309]
[1730824820349,3.2078,2461.7,2461.3,0.40633]
[1730824820554,3.61408,2461.7,2461.3,0.40633]
[1730824820958,0.40634,2461.4,2461.2,3.2078]
[1730824821165,1.24,2461.6,2461.0,0.40639]
[1730824821457,1.24,2461.6,2460.8,2.1443]
[1730824821652,3.2078,2461.2,2460.8,2.1443]
[1730824822459,3.2078,2461.2,2460.8,1.479]
[1730824822853,3.2078,2461.2,2460.6,3.8606]
[1730824823054,3.2078,2461.2,2460.4,0.643]
[1730824823261,3.2078,2461.2,2460.4,1.04953]
[1730824823457,3.2078,2460.6,2460.0,0.40658]
[1730824823656,2.3958,2460.6,2459.9,0.40662]
[1730824823955,2.3958,2460.6,2460.2,0.40656]
[1730824824157,2.3958,2460.6,2460.4,0.40653]
[1730824824459,3.2078,2460.6,2459.9,7.1104309]
[1730824824653,3.2078,2460.6,2460.2,0.40656]
[1730824824857,3.2078,2460.6,2460.3,0.40655]
[1730824825254,40.8,2460.5,2460.2,0.40656]
[1730824825456,40.8,2460.5,2460.3,0.40655]
[1730824826061,40.8,2460.5,2460.2,0.40656]
[1730824827263,40.8,2460.5,2459.8,2.1455]
[1730824827465,3.2078,2460.2,2459.8,2.1455]
[1730824827656,3.2078,2460.8,2459.9,7.1104309]
[1730824827858,3.2078,2460.8,2460.7,0.40649]
[1730824828065,3.2078,2461.1,2460.4,3.9026309]
[1730824828259,3.2078,2461.1,2460.5,0.6311]
[1730824828462,3.2078,2461.1,2460.8,0.40645]
[1730824828659,3.2078,2461.1,2460.7,0.40648]
[1730824828854,3.2078,2461.1,2460.9,0.40645]
[1730824829067,3.8526,2461.4,2460.5,3.8389]
[1730824829262,3.8526,2461.4,2460.6,0.6204]
[1730824829567,45.05897,2461.4,2460.9,0.40644]
[1730824829761,3.2078,2461.1,2460.5,2.1111]
[1730824830067,3.2078,2460.8,2460.7,0.40649]
[1730824830362,3.2078,2460.8,2460.6,0.40649]
[1730824830761,3.2078,2461.2,2460.5,2.1111]
[1730824831074,3.2078,2461.2,2460.5,5.3189]
[1730824831261,3.2078,2461.2,2460.8,0.40646]
[1730824831565,3.2078,2461.2,2460.9,0.40645]
[1730824831763,3.2078,2461.2,2460.5,2.1111]
[1730824832062,3.2078,2461.2,2461.0,0.40643]
[1730824832260,3.2078,2461.2,2460.9,0.40644]
[1730824832564,3.2078,2461.2,2460.5,2.1111]
[1730824832761,3.6142,2461.2,2460.8,0.40646]
[1730824832966,3.2078,2460.9,2460.8,0.40646]
[1730824833165,3.2078,2460.9,2460.6,0.4065]
[1730824833370,3.2078,2460.9,2460.7,0.40648]
[1730824833967,3.2078,2460.9,2460.6,0.40649]
[1730824834171,3.2078,2460.9,2460.7,0.40648]
[1730824834375,3.2078,2460.9,2460.5,2.1111]
[1730824834568,3.2078,2460.9,2460.6,0.40649]
[1730824834764,3.2078,2460.9,2460.7,0.40648]
[1730824835270,3.2078,2461.2,2461.0,0.40643]
[1730824835468,3.2078,2461.2,2460.5,2.1111]
[1730824835667,3.2078,2461.1,2460.8,0.40647]
[1730824835863,3.61422,2461.1,2460.5,2.1111]
[1730824836065,3.2078,2460.8,2460.5,2.1111]
[1730824836463,3.2078,2460.8,2460.5,1.48]
[1730824836670,0.4065,2460.6,2460.3,0.40654]
[1730824836876,3.2078,2460.4,2460.3,0.40654]
[1730824837375,7.2726,2460.4,2460.3,0.40655]
[1730824838279,3.2078,2460.4,2460.3,0.40655]
[1730824838873,1.2613,2460.7,2459.9,1.2695]
[1730824839072,1.2613,2460.7,2460.6,0.4065]
[1730824839381,5.1639309,2460.7,2459.9,1.2695]